Cogmind - Beta 14 @@@ ROGUE MODE // 2025.03.22 @ 14:24:28 Player: Chair Result: Destroyed by as-12200 with Assembled Heavy Rifle Performance ------------- Evolutions (0) 0 Regions Visited (3) 600 Robots Destroyed (33) 165 Value Destroyed (536) 536 Prototype IDs (25) 500 Alien Tech Used (0) 0 Bonus (300) 300 TOTAL SCORE: 2101 Bonus ------- Aligned with FarCom 300 Cogmind --------- Core Integrity 0/250 Matter 200/300 Energy 100/100 System Corruption 3% Temperature Cool (0) Movement Treading (240) Ox1 Location -10/Exiles Parts ------- > --- POWER (1) -------- (None) > --- PROPULSION (2) --- Light Treads Light Treads > --- UTILITY (2) ------ Heat Sink High-capacity Storage Unit > --- WEAPON (2) ------- AWS/Gauss > --- INVENTORY (20) --- Light Nuclear Core Light Treads Improved Heat Sink High-capacity Matter Pod (125) Sensor Array Signal Interpreter Improved Terrain Scanner Hacking Suite Hacking Suite Assault Rifle Light Assault Rifle Light Assault Rifle Grenade Launcher Grenade Launcher Rocket Launcher Makeshift Sword Peak State ------------ > --- POWER ------------ Ion Engine > --- PROPULSION ------- Light Treads Light Treads > --- UTILITY ---------- High-capacity Storage Unit Seismic Detector > --- WEAPON ----------- AWS/Gauss > --- INVENTORY -------- Light Nuclear Core Light Treads Light Treads Heat Sink Improved Heat Sink High-capacity Matter Pod Sensor Array Signal Interpreter Improved Terrain Scanner Hacking Suite Hacking Suite Assault Rifle Light Assault Rifle Light Assault Rifle Grenade Launcher Grenade Launcher Rocket Launcher Field Lobotomy Kit Makeshift Sword [Rating: 25] Favorites ----------- Power Ion Engine Engine Ion Engine Propulsion Light Treads Treads Light Treads Utility Seismic Detector Device Seismic Detector Storage High-capacity Storage Unit Weapon Assault Rifle Energy Gun Medium Laser Ballistic Gun Assault Rifle Launcher Grenade Launcher Special Weapon Field Lobotomy Kit Build | -11 -10 -10 -10 ------- Run | Yrd Mat Min Exi Slots Evolved . | . . . . Power . | . . . . Propulsion . | . . . . Utility . | . . . . Weapon . | . . . . Parts Attached 29 | 7 11 5 6 Power 2 | 1 1 . . Engine 2 | 1 1 . . Core . | . . . . Reactor . | . . . . Propulsion 5 | 2 2 . 1 Treads 5 | 2 2 . 1 Leg . | . . . . Wheel . | . . . . Hover . | . . . . Flight . | . . . . Utility 9 | 2 3 3 1 Device 5 | 1 1 2 1 Storage 4 | 1 2 1 . Processor . | . . . . Hackware . | . . . . Protection . | . . . . Artifact . | . . . . Weapon 13 | 2 5 2 4 Energy Gun 1 | 1 . . . Energy Cannon . | . . . . Ballistic Gun 8 | 1 5 . 2 Ballistic Cannon . | . . . . Launcher 3 | . . 2 1 Special Weapon 1 | . . . 1 Impact Weapon . | . . . . Slashing Weapon . | . . . . Piercing Weapon . | . . . . Special Melee Weapon . | . . . . Unidentified Prototypes . | . . . . Parts Lost 5 | . 1 1 3 Power 1 | . . . 1 Propulsion 1 | . . . 1 Utility 1 | . . . 1 Weapon 2 | . 1 1 . Highest Loss Streak 3 | . 1 1 3 To Critical Strikes . | . . . . Average Slot Usage (%) 98 | . 98 100 94 Engine 13 | . 14 14 13 Treads 27 | . 28 28 27 Device 13 | . 12 14 13 Storage 14 | . 14 14 14 Energy Gun 2 | . 7 . . Ballistic Gun 16 | . 20 16 9 Launcher 7 | . . 11 10 Peak Build Rating 25 | 7 9 10 25 Average Rating 10 | 5 7 9 15 On Entrance 6 | . 7 9 10 Naked Turns . | . . . . Heaviest Build 57 | 12 29 51 57 Greatest Support 40 | 40 40 40 40 Greatest Overweight (x) 1 | . . 1 1 Average Overweight (x) . | . . . 1 Largest Inventory Capacity 20 | 8 15 20 20 Average Capacity 16 | 7 10 19 20 Most Carried 20 | 3 15 18 20 Average Carried 14 | 1 8 17 17 Final Capacity 20 | 8 15 20 20 Final Carried 17 | 3 15 17 16 Class Distribution -------------------- 88% | Scavenger-Mutant 11% | Mutant Dominant Class ---------------- Scavenger-Mutant | -10/Materials Scavenger-Mutant | -10/Mines Scavenger-Mutant | -10/Exiles Resources | -11 -10 -10 -10 ----------- Run | Yrd Mat Min Exi Matter Collected 847 | 279 386 182 . Remotely . | . . . . Salvage Created 895 | 112 593 173 17 Parts 65 | 6 49 8 2 Haulers Intercepted 2 | . 2 . . Recyclers Shooed 4 | . 2 2 . Parts Field Recycled . | . . . . Retrieved Matter . | . . . . Parts Self-Destructed . | . . . . Prevented . | . . . . Kills | -11 -10 -10 -10 ------- Run | Yrd Mat Min Exi Combat Hostiles Destroyed 21 | . 14 7 . Guns 16 | . 14 2 . AOE 5 | . . 5 . Classes Destroyed 9 | 3 5 . 1 Worker 3 | 1 2 . . Tunneler 1 | 1 . . . Hauler 2 | . 2 . . Recycler 2 | 1 1 . . Operator 2 | . 2 . . Watcher 1 | . 1 . . Swarmer 12 | . 9 3 . Grunt 9 | . 5 4 . Zionite 1 | . . . 1 Best Kill Streak 5 | 2 5 3 1 Combat Bots Only 4 | . 4 3 . Max Kills in Single Turn 2 | 1 1 2 1 Gunslinging . | . . . . Exploded 2 | . . 2 . Melee . | . . . . Uniques/NPCs Destroyed . | . . . . Combat | -11 -10 -10 -10 -------- Run | Yrd Mat Min Exi Hostile Shots Fired 134 | . 72 16 46 Missed 45 | . 24 6 15 Damage Taken 1257 | . 411 174 672 Core 259 | . 89 42 128 Absorbed by Shields . | . . . . Core Remaining (%) 100 | 100 . . . Volleys Fired 88 | 9 59 15 5 Largest 2 | 2 2 2 1 Hottest 70 | 70 70 50 . Shots Fired 164 | 18 115 25 6 Gun 152 | 18 115 18 1 Cannon . | . . . . Launcher 7 | . . 7 . Special 5 | . . . 5 Kinetic 105 | 9 77 18 1 Thermal 47 | 9 38 . . Explosive 7 | . . 7 . Electromagnetic . | . . . . Robot Hit Streak 11 | 7 11 6 7 Robot Miss Streak 4 | 1 4 2 . Penetration Max . | . . . . Secondary Targets 3 | . 3 . . Max Gunslinging Chain 1 | . 1 . . Autonomous 1 | . . . 1 Shots Hit Robots 103 | 13 69 15 6 Core Hits 63 | 5 41 15 2 Critical Kills . | . . . . Critical Parts Destroyed . | . . . . Critical Strikes 5 | 2 3 . . Burn 5 | 2 3 . . Melee Attacks . | . . . . Impact . | . . . . Slashing . | . . . . Piercing . | . . . . Sneak Attacks . | . . . . Combat Hostiles . | . . . . Follow-up Attacks . | . . . . Damage Inflicted 1308 | 143 700 439 26 Guns 1011 | 143 700 143 25 Cannons . | . . . . Explosions 296 | . . 296 . Melee . | . . . . Ramming 1 | . . . 1 Kinetic 623 | 54 401 143 25 Thermal 388 | 89 299 . . Explosive 296 | . . 296 . Electromagnetic . | . . . . Impact . | . . . . Slashing . | . . . . Piercing . | . . . . Highest Corruption 3 | . 2 2 3 Average Corruption 1 | . 1 2 2 Corruption Purged . | . . . . Corruption Blocked . | . . . . Effects 31 | . 6 14 11 Message Errors 12 | . 1 6 5 Matter Fused 8 | . 4 1 3 Heat Flow Errors 1 | . . . 1 Energy Discharges 4 | . . 3 1 Parts Rejected 1 | . 1 . . Data Loss (minor) 2 | . . 2 . Data Loss (major) 3 | . . 2 1 Overload Shots . | . . . . Overflow Damage . | . . . . Projectiles . | . . . . Explosions . | . . . . Melee . | . . . . Knockbacks . | . . . . Impact . | . . . . Kinetic . | . . . . Secondary . | . . . . Self-Inflicted Damage 51 | . . 51 . Shots 2 | . . 2 . Rammed 1 | . . . 1 Targets Rammed 1 | . . . 1 Kicked . | . . . . Crushed . | . . . . Highest Temperature 278 | 90 150 5 278 Average Temperature 52 | 36 46 3 143 Received Heat Transfer 105 | . 60 45 . Effects 2 | . . . 2 Energy Bleed 2 | . . . 2 Siege Activations . | . . . . Robots Corrupted . | . . . . Combat Hostiles . | . . . . Parts Fried . | . . . . Impact Corruptions . | . . . . Robots Melted . | . . . . Combat Hostiles . | . . . . Parts Melted 2 | 1 1 . . Heat Transferred 1517 | 407 1110 . . Parts Sabotaged . | . . . . Parts Stolen . | . . . . Parts Stripped . | . . . . Power Chain Reactions . | . . . . Alert | -11 -10 -10 -10 ------- Run | Yrd Mat Min Exi Peak Influence 249 | 15 249 149 . Initial 34 | . 9 34 . Average 87 | 5 154 51 . Maximum Alert Level 1 | . 1 . . Low Security (%) 84 | 100 59 100 . Level 1 15 | . 40 . . Level 2 . | . . . . Level 3 . | . . . . Level 4 . | . . . . Level 5 . | . . . . High Security . | . . . . Max Security . | . . . . Squads Dispatched 3 | . 3 . . Investigation 1 | . 1 . . Extermination . | . . . . Reinforcement 2 | . 2 . . Assault . | . . . . Garrison . | . . . . Intercept . | . . . . Searches Triggered . | . . . . Construction Impeded . | . . . . Haulers Reinforced . | . . . . Active Scanning Responses . | . . . . Cargo Convoy Interrupts . | . . . . Stealth | -11 -10 -10 -10 --------- Run | Yrd Mat Min Exi Distress Signals 1 | . 1 . . Communications Jammed . | . . . . Distress Signals . | . . . . Times Spotted 41 | . 24 7 10 Peak Tracking Total 12 | . 5 3 12 Tactical Retreats . | . . . . Traps | -11 -10 -10 -10 ------- Run | Yrd Mat Min Exi Traps Triggered 1 | . 1 . . Indirectly . | . . . . Trap Hack Attempts . | . . . . Triggered . | . . . . Disarmed . | . . . . Reprogrammed . | . . . . Reused . | . . . . Traps Extracted . | . . . . Installed . | . . . . Triggered . | . . . . Machines | -11 -10 -10 -10 ---------- Run | Yrd Mat Min Exi Machines Disabled . | . . . . Max in Single Turn . | . . . . Machines Repaired . | . . . . Machines Dismantled . | . . . . Machines Sabotaged . | . . . . Overloaded Fab Kills . | . . . . Hacking | -11 -10 -10 -10 --------- Run | Yrd Mat Min Exi Machines Accessed 7 | . 6 . 1 Terminals 5 | . 5 . . Fabricators . | . . . . Repair Stations 1 | . 1 . . Recycling Units . | . . . . Scanalyzers . | . . . . Garrison Access . | . . . . Total Hacks 24 | . 23 . 1 Successful 13 | . 12 . 1 Failed 11 | . 11 . . Catastrophic 2 | . 2 . . Database Lockouts . | . . . . Manual 16 | . 15 . 1 Terminals 21 | . 21 . . Fabricators . | . . . . Repair Stations 2 | . 2 . . Recycling Units . | . . . . Scanalyzers . | . . . . Garrison Access . | . . . . Terminal Hacks 9 | . 8 . 1 Part Schematic 1 | . 1 . . Robot Analysis 5 | . 5 . . Prototype ID Bank 1 | . 1 . . Unreport Threat 1 | . 1 . . Derelict Proto ID Bank 1 | . . . 1 Fabricator Hacks . | . . . . Repair Station Hacks 1 | . 1 . . Scan Component 1 | . 1 . . Recycling Unit Hacks . | . . . . Scanalyzer . | . . . . Garrison Access Hacks . | . . . . Unauthorized Hacks 3 | . 3 . . Terminals 3 | . 3 . . Botnet 3 | . 3 . . Fabricators . | . . . . Repair Stations . | . . . . Recycling Units . | . . . . Scanalyzers . | . . . . Garrison Access . | . . . . Data Cores Recovered . | . . . . Used . | . . . . Hacking Detections 6 | . 6 . . Full Trace Events 2 | . 2 . . Feedback Events 1 | . 1 . . Corruption 1 | . 1 . . Feedback Blocked . | . . . . Robot Schematics Acquired . | . . . . Robots Built . | . . . . Authchips . | . . . . Time . | . . . . Total Robot Build Rating . | . . . . Part Schematics Acquired 1 | . 1 . . Parts Built . | . . . . Authchips . | . . . . Time . | . . . . Total Part Build Rating . | . . . . Parts Repaired . | . . . . Time . | . . . . Parts Recycled . | . . . . Recycled Matter . | . . . . Retrieved Matter . | . . . . Retrieved Components . | . . . . Parts Scanalyzed . | . . . . Part Schematics Acquired . | . . . . Parts Damaged . | . . . . Bothacking | -11 -10 -10 -10 ------------ Run | Yrd Mat Min Exi Used RIF Installer . | . . . . Robots Hacked . | . . . . Non-combat . | . . . . Combat . | . . . . Robot Hacks Applied . | . . . . Relay Couplers Released . | . . . . Fabnet Peak Effective % . | . . . . Robots Rewired . | . . . . Allies Hacked . | . . . . Hacks Repelled . | . . . . Allies | -11 -10 -10 -10 -------- Run | Yrd Mat Min Exi Total Allies 2 | . . 1 1 Largest Group 1 | . . 1 1 Highest-Rated Group 36 | . . 31 36 Highest-Rated Ally 36 | . . 31 36 Total Orders . | . . . . Ally Attacks 2 | . . . 2 Total Damage 116 | . . . 116 Kills . | . . . . Allies Corrupted 1 | . . . 1 Allies Melted . | . . . . Field Lobotomies 1 | . . . 1 Intel | -11 -10 -10 -10 ------- Run | Yrd Mat Min Exi Robot Analysis Total 5 | . 5 . . Derelict Logs Recovered 1 | . . 1 . Drone Launches . | . . . . Drone Recoveries . | . . . . Exploration | -11 -10 -10 -10 ------------- Run | Yrd Mat Min Exi Turns Passed 2673 | 123 793 1194 563 Spaces Moved 1109 | 65 356 466 222 Core 17 | 17 . . . Treads 1092 | 48 356 466 222 Legs . | . . . . Wheels . | . . . . Hover . | . . . . Flight . | . . . . Fastest Speed 50 | 50 160 160 240 Average Speed 206 | 131 160 236 240 Slowest Speed 240 | 160 160 240 240 Overloaded Moves . | . . . . Propulsion Burnouts . | . . . . Robots Hopped . | . . . . Cave-ins Triggered . | . . . . Exploration Rate (%) 57 | 5 75 96 54 Regions Visited 3 Branch Regions 2 Pre-discovered Areas . | . . . . Known Exits Taken . | . . . . Unknown Exits Taken 3 | 1 1 1 . Scrap Searched 1 | . . 1 . Spaces Dug 11 | . . 11 . Terrain Destroyed 60 | . . 60 . Melee . | . . . . Projectile . | . . . . AOE 60 | . . 60 . Terrain Rammed . | . . . . Walls Destroyed . | . . . . Machines Disabled . | . . . . Actions | -11 -10 -10 -10 --------- Run | Yrd Mat Min Exi Total 1345 | 83 484 535 243 Wait 76 | . 32 42 2 Move 1106 | 64 355 465 222 Hop . | . . . . Pick Up 25 | 3 15 5 2 Fast Attach 10 | 7 2 . 1 Attach 8 | . 2 1 5 Detach 5 | . 2 . 3 Swap 11 | . 7 4 . Drop 15 | . 10 3 2 Fire 88 | 9 59 15 5 Melee . | . . . . Ram . | . . . . Kick . | . . . . Crush 1 | . . . 1 Escape Stasis . | . . . . Rewire . | . . . . Trap . | . . . . Miscellaneous . | . . . . Route ------- -11/Scrapyard -10/Materials (discovered 3 exits: [*Mat x2] / [*Min]) -10/Mines (discovered 3 exits: [*Mat x2] / *Exi) -10/Exiles History --------- Turn | Location | Event 13 | -11/Scrapyard | Discovered new exit (range 15) 124 | -11/Scrapyard | Entered Materials 289 | -10/Materials | Discovered new exit (range 16) 291 | -10/Materials | Discovered new exit (range 16) 609 | -10/Materials | Build established: Scavenger-Mutant 707 | -10/Materials | Discovered new exit (range 7) 917 | -10/Materials | Entered Mines 937 | -10/Mines | A weapon hastily lodged in a ceiling crevice suddenly fell to the ground 1014 | -10/Mines | Received a Rocket Launcher from a helpful Derelict 1383 | -10/Mines | Core integrity fell below 50% 1595 | -10/Mines | Learned Materials emergency access door positions 1605 | -10/Mines | Discovered new exit (range 9) 1955 | -10/Mines | Discovered new exit (range 12) 1970 | -10/Mines | Received a Mining Laser from a helpful Derelict 2097 | -10/Mines | Deemed a non-threat by the Exiles lab entrance 2099 | -10/Mines | Discovered new exit (range 5) 2111 | -10/Mines | Entered Exiles 2111 | -10/Exiles | Accompanied by 1 ally 2169 | -10/Exiles | Met 8R-AWN 2210 | -10/Exiles | Met EX-HEX 2277 | -10/Exiles | Met EX-BIN 2311 | -10/Exiles | Aligned with FarCom system 2313 | -10/Exiles | Given EX-Vault access code 2368 | -10/Exiles | Opened EX-Vault 2384 | -10/Exiles | Found AWS/Gauss 2440 | -10/Exiles | Warned to stay clear of 0b10 Research branches 2494 | -10/Exiles | Found Field Lobotomy Kit 2621 | -10/Exiles | Met EX-DEC 2643 | -10/Exiles | Attacked by the Exiles 2647 | -10/Exiles | Assimilated DAS Turret with FLK Orb 2670 | -10/Exiles | Core integrity fell below 20% 2674 | -10/Exiles | Destroyed by as-12200 with Assembled Heavy Rifle Last Messages --------------- time, folks! 02645_ EX-DEC: "Let's see what this bad boy can do..." 02645_ EX-DEC deploys DAS Turret. 02646_ Machine disabled. 02646_ Lgt. Treads destroyed. 02647_ Seismic Detector destroyed. 02647_ DAS Turret assimilated. 02648_ EX-DEC knocked back. 02650_ EX-DEC unaffected by assimilation attempt. 02650_ EX-DEC knocked back. 02652_ DAS Turret system terminally corrupted. 02653_ EX-DEC unaffected by assimilation attempt. 02655_ EX-BIN: "I just want to science!" 02656_ Field Lobotomy Kit expended. 02656_ EX-BIN unaffected by assimilation attempt. 02660_ Slug penetrates GU-8H7(z). 02660_ GU-8H7(z) destroyed. 02667_ Ion Engine destroyed. 02672_ JXXWSXNLLT:SMDZ<&RA DTS